bitfinex-derivatives/quotes_ETHF0:USTF0_20240917
["timestamp","ask_amount","ask_price","bid_price","bid_amount"]
[1726604589701,0.4239,2358.2,2357.7,0.42398]
[1726604590206,0.42392,2358.1,2357.6,4.7808]
[1726604590400,0.42394,2358.0,2357.6,4.3568]
[1726604590599,0.42392,2358.1,2357.6,4.3568]
[1726604590911,3.2078,2358.2,2357.6,4.7808]
[1726604590912,1.48794,2358.0,2357.6,4.7808]
[1726604591308,1.064,2358.0,2357.8,3.31]
[1726604591898,1.064,2358.0,2357.6,1.4708]
[1726604592899,1.064,2358.0,2357.8,0.42397]
[1726604593106,1.0598,2358.4,2357.8,7.2778]
[1726604593307,1.0598,2358.4,2357.8,7.70176]
[1726604593504,1.48367,2358.4,2357.8,7.2778]
[1726604593826,1.48367,2358.4,2357.9,0.42394]
[1726604594306,1.0598,2358.4,2358.1,0.42391]
[1726604594508,1.0805,2358.5,2358.2,0.42389]
[1726604594711,1.0805,2358.5,2358.2,1.44899]
[1726604595013,1.50435,2358.5,2358.2,1.44899]
[1726604595211,1.0805,2358.5,2358.2,1.44899]
[1726604595403,1.50435,2358.5,2358.2,1.44899]
[1726604597509,1.0805,2358.5,2358.3,3.63167]
[1726604598110,1.50434,2358.5,2358.3,3.63167]
[1726604598313,1.50434,2358.5,2358.3,3.63168]
[1726604598907,1.50434,2358.5,2358.3,3.2078]
[1726604599113,0.42386,2358.4,2358.2,1.0251]
[1726604599315,1.50536,2358.4,2358.1,0.42391]
[1726604599709,1.0815,2358.4,2358.2,0.4239]
[1726604600007,1.0815,2358.4,2358.3,0.42388]
[1726604600214,1.0805,2358.5,2358.3,0.42388]
[1726604600416,1.50435,2358.5,2358.3,0.42388]
[1726604601006,1.50435,2358.5,2358.2,0.42389]
[1726604601709,1.0805,2358.5,2358.3,0.42388]
[1726604602415,1.50435,2358.5,2358.3,0.42388]
[1726604603508,1.50435,2358.5,2358.1,3.2078]
[1726604603509,1.50435,2358.5,2358.2,0.42389]
[1726604609110,1.50435,2358.5,2358.1,3.63171]
[1726604609111,1.0805,2358.5,2358.1,3.63171]
[1726604609317,2.14014,2358.5,2358.0,0.42392]
[1726604609618,0.42392,2358.1,2357.9,1.48124]
[1726604609816,1.05973,2358.3,2357.8,7.3868]
[1726604610122,0.42395,2357.9,2357.8,7.3868]
[1726604610322,0.42395,2357.9,2357.8,3.2078]
[1726604610713,5.30069,2357.9,2357.5,3.63182]
[1726604610908,1.58649,2357.9,2357.4,1.49424]
[1726604611322,0.424,2357.7,2357.4,1.49424]
[1726604611719,0.42401,2357.6,2357.4,1.49424]
[1726604612220,0.424,2357.7,2357.4,1.49424]
[1726604612626,1.58649,2357.9,2357.4,1.49424]
[1726604612814,0.42401,2357.6,2357.4,1.49424]
[1726604613317,0.424,2357.7,2357.4,1.49424]
[1726604613721,0.424,2357.7,2357.4,1.49423]
[1726604614027,0.424,2357.7,2357.4,4.80423]
[1726604614728,0.424,2357.7,2357.5,0.42402]
[1726604614921,1.0973,2358.0,2357.7,0.42398]
[1726604615128,0.42396,2357.9,2357.6,3.734]
[1726604615426,1.52125,2358.0,2357.7,0.42398]
[1726604616026,0.42396,2357.9,2357.6,3.73399]
[1726604617920,0.42399,2357.8,2357.4,8.0923]
[1726604618121,1.0973,2358.0,2357.4,8.0923]
[1726604618423,0.42399,2357.7,2357.5,0.42402]
[1726604618626,0.42398,2357.8,2357.5,0.42402]
[1726604618925,0.42399,2357.7,2357.5,0.42402]
[1726604619121,2.15716,2358.0,2357.4,8.0923]
[1726604619122,0.42398,2357.8,2357.6,0.42401]
[1726604619326,2.15716,2358.0,2357.7,0.42399]
[1726604619327,0.42396,2357.9,2357.7,0.42399]
[1726604619526,0.42396,2357.9,2357.6,3.73399]
[1726604619725,0.42395,2357.9,2357.6,3.73399]
[1726604619925,0.42395,2357.9,2357.7,0.42399]
[1726604620630,1.0973,2358.0,2357.7,0.42399]
[1726604620631,0.42397,2357.8,2357.7,0.42399]
[1726604621924,0.42397,2357.8,2357.6,3.734]
[1726604622323,0.42396,2357.9,2357.7,0.42398]
[1726604623224,1.0973,2358.0,2357.6,3.734]
[1726604623529,0.42398,2357.8,2357.6,3.734]
[1726604623722,0.42397,2357.9,2357.8,0.42397]
[1726604624125,0.42397,2357.9,2357.7,3.63178]
[1726604624425,0.42397,2357.8,2357.6,3.73399]
[1726604624632,0.42397,2357.8,2357.7,0.42399]
[1726604625826,0.42399,2357.7,2357.6,3.31]
[1726604626128,0.42399,2357.7,2357.4,8.0923]
[1726604626330,0.42399,2357.8,2357.6,0.424]
[1726604626631,0.42399,2357.8,2357.4,8.0923]
[1726604626632,0.42398,2357.8,2357.4,8.0923]
[1726604626826,0.42399,2357.7,2357.4,8.0923]
[1726604627131,0.42399,2357.7,2357.4,12.3339]
[1726604627727,0.42399,2357.7,2357.4,8.0923]
[1726604628428,0.42399,2357.7,2357.6,0.42401]
[1726604629034,0.42398,2357.8,2357.7,0.42399]
[1726604630135,0.42399,2357.7,2357.6,3.73399]
[1726604633841,0.42397,2357.9,2357.6,7.5516]
[1726604634031,0.42397,2357.9,2357.8,0.42397]
[1726604634340,0.42395,2357.9,2357.8,0.42397]
[1726604637143,1.0973,2358.0,2357.7,0.42398]
[1726604637144,0.42397,2357.8,2357.7,0.42398]
[1726604637334,2.15715,2358.0,2357.6,3.73399]
[1726604637530,1.05993,2357.8,2357.5,0.42402]
[1726604637731,0.42402,2357.6,2357.4,5.30853]
[1726604637931,0.42402,2357.6,2357.4,1.49424]
[1726604638132,0.424,2357.7,2357.4,7.588]
[1726604638333,1.6004,2357.9,2357.6,3.734]
[1726604638334,0.42398,2357.8,2357.6,3.734]
[1726604639347,1.0599,2357.9,2357.6,3.734]
[1726604639538,1.0599,2357.9,2357.6,3.31]
[1726604639539,0.42399,2357.7,2357.6,3.31]
[1726604641253,0.42399,2357.7,2357.6,3.73401]
[1726604641446,0.42397,2357.8,2357.7,0.42398]
[1726604641646,0.42396,2357.9,2357.7,0.42398]
[1726604642556,0.42396,2357.9,2357.7,0.42399]
[1726604642850,0.42396,2357.9,2357.7,0.42398]
[1726604643440,0.42397,2357.8,2357.7,0.42398]
[1726604643651,0.42397,2357.8,2357.6,4.22409]
[1726604643848,0.42397,2357.8,2357.6,3.8001]
[1726604644049,0.42397,2357.8,2357.7,0.42399]
[1726604644453,0.42397,2357.8,2357.6,3.8001]
[1726604644751,0.42397,2357.8,2357.7,0.42399]
[1726604645349,0.42397,2357.8,2357.6,4.22409]
[1726604645547,0.42397,2357.8,2357.7,0.42399]
[1726604646049,0.42397,2357.8,2357.6,3.8001]
[1726604646050,0.42397,2357.8,2357.6,3.31]
[1726604646246,0.42397,2357.8,2357.7,0.42399]
[1726604647351,0.90627,2357.9,2357.7,0.42399]
[1726604647555,0.42397,2357.8,2357.7,0.42399]
[1726604648251,0.42397,2357.8,2357.6,3.31]
[1726604648252,0.42397,2357.8,2357.6,3.734]
[1726604648457,0.42399,2357.7,2357.6,3.734]
[1726604649048,0.42398,2357.8,2357.6,3.734]
[1726604649351,0.42399,2357.8,2357.6,3.734]
[1726604649558,0.42397,2357.8,2357.7,0.42398]
[1726604649947,0.42397,2357.8,2357.6,3.734]
[1726604651247,0.42399,2357.7,2357.6,3.734]
[1726604651447,0.42399,2357.7,2357.6,4.38360194]
[1726604651647,0.42399,2357.7,2357.6,8.62520194]
[1726604652259,0.42399,2357.7,2357.6,9.66457413]
[1726604652455,0.42399,2357.7,2357.6,5.42297413]
[1726604652648,0.42399,2357.7,2357.6,5.42296297]
[1726604652956,0.42399,2357.7,2357.6,3.734]
[1726604653161,0.42399,2357.7,2357.6,4.38360764]
[1726604653558,0.42399,2357.7,2357.6,5.42297154]
[1726604653750,0.42397,2357.8,2357.7,0.42398]
[1726604653957,0.42397,2357.8,2357.7,1.07358764]
[1726604654261,0.42397,2357.8,2357.7,0.42398]
[1726604654461,0.42397,2357.8,2357.7,1.07357065]
[1726604654664,0.42397,2357.8,2357.7,2.11291864]
[1726604654956,0.42397,2357.8,2357.7,2.11290792]
[1726604655157,0.42397,2357.8,2357.7,1.68892792]
[1726604657955,0.42399,2357.7,2357.6,4.41796902]
[1726604658156,0.42399,2357.7,2357.6,3.44637242]
[1726604658357,0.9556,2357.9,2357.6,7.40593221]
[1726604658560,0.90626,2357.9,2357.7,2.11283019]
[1726604658868,0.90626,2357.9,2357.8,1.68873904]
[1726604660759,0.90626,2357.9,2357.8,1.68872327]
[1726604660955,0.90626,2357.9,2357.8,1.6887244]
[1726604661162,0.90626,2357.9,2357.6,4.84196902]
[1726604661163,0.42398,2357.8,2357.6,4.84196902]
[1726604661452,0.42398,2357.8,2357.7,1.68875019]
[1726604661659,0.42398,2357.8,2357.7,2.11274019]
[1726604661861,0.42398,2357.8,2357.7,1.68875019]
[1726604662160,0.4823,2357.9,2357.8,0.42397]
[1726604662361,0.4823,2357.9,2357.8,12.57734273]
[1726604662558,3.2078,2358.1,2357.8,16.94346996]
[1726604662758,3.2078,2358.1,2358.0,0.42393]
[1726604662964,3.63172,2358.1,2358.0,1.68875019]
[1726604663163,3.2078,2358.1,2358.0,5.42268019]
[1726604663462,3.2078,2358.1,2358.0,8.31139429]
[1726604664259,3.2078,2358.1,2358.0,7.01303995]
[1726604664467,3.2078,2358.1,2358.0,7.01203392]
[1726604664771,3.2078,2358.1,2358.0,5.32428976]
[1726604664964,3.2078,2358.1,2358.0,6.53413382]
[1726604665169,3.2078,2358.1,2358.0,5.88500149]
[1726604665468,3.2078,2358.1,2358.0,5.42167786]
[1726604665672,0.92751,2358.2,2358.0,6.53413762]
[1726604665971,0.92751,2358.2,2358.1,1.68774786]
[1726604666169,0.92751,2358.2,2358.1,0.64913379]
[1726604668467,0.92751,2358.2,2357.8,8.17975354]
[1726604668468,0.42394,2358.0,2357.8,4.84642976]
[1726604668669,0.4792,2357.9,2357.8,4.84642976]
[1726604668880,0.4792,2357.9,2357.8,6.53441201]
[1726604669074,0.4792,2357.9,2357.8,2.11195225]
[1726604669273,0.4792,2357.9,2357.8,3.22441201]
[1726604669574,0.4792,2357.9,2357.8,2.11195225]
[1726604669878,0.92751,2358.2,2357.8,13.55904201]
[1726604670072,0.5036,2358.2,2358.1,0.42392]
[1726604670279,0.5036,2358.2,2358.1,1.07314394]
[1726604670472,0.9275,2358.2,2358.1,1.07314394]
[1726604670671,0.5036,2358.2,2358.1,1.07314394]
[1726604671180,0.9275,2358.2,2358.1,0.64922394]
[1726604671477,0.9275,2358.2,2358.1,1.07314394]
[1726604671677,0.9275,2358.2,2358.1,0.42392]
[1726604671875,0.9275,2358.2,2358.1,1.07311257]
[1726604672072,0.9275,2358.2,2358.1,0.64919257]
[1726604672274,0.9275,2358.2,2357.8,4.86975354]
[1726604672275,10.7444,2358.2,2357.8,4.32025976]
[1726604672474,0.42399,2357.7,2357.5,4.74427976]
[1726604672677,3.31,2357.9,2357.4,1.11245976]
[1726604672878,0.9274,2357.6,2357.3,1.11245976]
[1726604673173,1.35142,2357.6,2357.3,0.42406]
[1726604673376,1.35142,2357.6,2357.2,1.53625976]
[1726604673377,0.9274,2357.6,2357.2,1.11245976]
[1726604673679,0.9274,2357.6,2357.0,9.42246976]
[1726604673680,0.42406,2357.4,2357.0,9.42246976]
[1726604673877,0.42406,2357.4,2357.0,8.31001]
[1726604674274,0.42407,2357.3,2357.0,3.7069]
[1726604674672,0.9274,2357.6,2357.0,3.2078]
[1726604674977,0.42409,2357.2,2357.0,3.2078]
[1726604675172,4.37008,2357.5,2356.8,1.52285976]
[1726604675173,0.8244,2357.1,2356.8,1.52285976]
[1726604675370,0.8244,2357.1,2356.8,0.4104]
[1726604676372,0.4003,2357.1,2356.8,0.83455]
[1726604676876,0.4003,2357.1,2356.9,3.31]
[1726604677074,0.4345,2357.2,2357.0,3.2078]
[1726604677281,0.4345,2357.2,2357.1,3.31]
[1726604677671,0.85858,2357.2,2357.0,3.31]
[1726604677869,0.4241,2357.1,2356.8,4.14454]
[1726604678079,0.4298,2357.0,2356.8,0.4104]
[1726604678278,0.4298,2357.0,2356.7,6.9224]
[1726604678482,0.85392,2357.0,2356.7,3.6124]
[1726604678781,0.85392,2357.0,2356.7,3.2078]
[1726604678977,0.4298,2357.0,2356.7,6.94196]
[1726604681583,0.85393,2357.0,2356.7,6.94197]
[1726604681782,0.4298,2357.0,2356.7,6.5178]
[1726604681971,0.4298,2357.0,2356.9,3.31]
[1726604682376,0.85391,2357.0,2356.9,3.31]
[1726604686585,0.85391,2357.0,2356.8,0.42415]
[1726604691586,0.42413,2356.9,2356.8,0.42415]
[1726604691888,0.85392,2357.0,2356.8,0.42415]
[1726604694480,0.42414,2356.9,2356.7,6.94196]
[1726604695085,0.85335,2356.8,2356.7,3.2078]
[1726604695485,0.4292,2356.8,2356.7,3.63197]
[1726604696079,3.2078,2357.7,2357.1,0.42409]
[1726604696285,1.06008,2357.5,2357.1,3.73409]
[1726604696591,1.06008,2357.5,2357.1,3.714]
[1726604696592,0.42407,2357.3,2357.1,3.714]
[1726604696783,4.26793,2357.4,2356.9,0.42412]
[1726604697097,0.4241,2357.1,2356.8,5.00715]
[1726604697392,0.4241,2357.1,2356.8,0.82815]
[1726604697992,0.4241,2357.1,2356.8,0.404]
[1726604698383,0.4241,2357.1,2356.8,0.82814]
[1726604698686,0.4241,2357.1,2356.9,0.42413]
[1726604700686,0.85259,2357.2,2357.0,0.42411]
[1726604703498,0.4241,2357.1,2356.9,0.42412]
[1726604704096,0.42412,2357.0,2356.8,0.404]
[1726604704287,0.3846,2357.0,2356.7,3.2078]
[1726604704492,0.3846,2357.0,2356.7,3.63197]
[1726604704493,0.42415,2356.9,2356.7,3.63197]
[1726604704893,0.414,2356.8,2356.7,3.63197]
[1726604705191,0.414,2356.8,2356.7,3.2078]
[1726604705993,0.83815,2356.8,2356.7,3.2078]
[1726604706186,0.83815,2356.8,2356.6,0.42418]
[1726604706583,0.83815,2356.8,2356.5,0.4052]
[1726604706584,0.83816,2356.8,2356.5,0.4052]
[1726604706885,0.83816,2356.8,2356.6,0.42418]
[1726604707286,0.414,2356.8,2356.4,3.5926]
[1726604707491,0.4242,2356.5,2356.4,3.2078]
[1726604707686,0.4242,2356.5,2356.2,0.42425]
[1726604707889,4.26823,2356.7,2356.1,0.4076]
[1726604707890,1.19913,2356.4,2356.1,0.4076]
[1726604708088,0.42424,2356.3,2356.1,0.4076]
[1726604709489,1.19913,2356.4,2356.1,0.83188]
[1726604709794,0.42424,2356.3,2356.1,0.4076]
[1726604710094,0.42424,2356.3,2356.0,4.13609]
[1726604710095,0.42425,2356.3,2356.0,4.13609]
[1726604710811,0.7749,2356.4,2356.0,0.82609]
[1726604711096,0.42426,2356.2,2355.9,0.8187]
[1726604711302,0.42425,2356.3,2356.0,0.42429]
[1726604711499,0.42425,2356.3,2355.9,4.0265]
[1726604712099,0.42426,2356.2,2355.9,4.0265]
[1726604712295,7.2927,2356.4,2355.9,0.3944]
[1726604712999,0.42425,2356.3,2356.0,0.42428]
[1726604713403,0.7749,2356.4,2355.9,4.0265]
[1726604713600,0.42424,2356.3,2355.9,0.8187]
[1726604713791,0.42426,2356.2,2355.9,4.0265]
[1726604714392,3.9827,2356.4,2355.9,3.6022]
[1726604714603,0.42429,2356.0,2355.9,3.2078]
[1726604715003,0.3833,2356.1,2355.9,3.2078]
[1726604715304,0.42429,2356.0,2355.9,3.2078]
[1726604715486,0.4096,2356.0,2355.9,3.2078]
[1726604715894,0.4096,2356.0,2355.9,3.63211]
[1726604716286,3.9827,2356.4,2355.9,3.63211]
[1726604716287,0.42424,2356.3,2355.9,3.63211]
[1726604716487,0.4096,2356.3,2355.9,3.63211]
[1726604717095,0.42427,2356.2,2355.9,3.63211]
[1726604718397,0.83385,2356.3,2356.0,0.42429]
[1726604718596,0.4096,2356.3,2356.1,0.3936]
[1726604718796,0.83384,2356.3,2356.1,0.3936]
[1726604720098,0.83384,2356.3,2356.0,0.4005]
[1726604720099,0.42426,2356.2,2356.0,0.4005]
[1726604720607,0.83385,2356.3,2356.0,0.82479]
[1726604721502,0.83385,2356.3,2356.1,0.42427]
[1726604721503,0.4096,2356.3,2356.1,0.42427]
[1726604721803,0.83385,2356.3,2356.0,0.82478]
[1726604722910,0.83385,2356.3,2356.1,0.42428]
[1726604723110,0.83385,2356.3,2356.0,0.82478]
[1726604723705,0.83385,2356.3,2356.1,0.42428]
[1726604723706,0.4096,2356.3,2356.1,0.42428]
[1726604723905,0.83385,2356.3,2356.1,0.42428]
[1726604726704,0.42418,2356.7,2356.5,0.4242]
[1726604727003,1.06025,2357.1,2356.5,0.4242]
[1726604727004,0.7805,2357.1,2356.6,0.3927]
[1726604727201,4.26788,2357.5,2357.0,0.4241]
[1726604727202,0.42407,2357.3,2357.0,0.4241]
[1726604727402,0.42407,2357.3,2357.1,0.42409]
[1726604727601,0.42407,2357.3,2357.0,0.81]
[1726604728098,0.82325,2357.4,2357.1,0.42409]
[1726604728404,3.2078,2357.5,2357.1,6.9105]
[1726604728599,3.2078,2357.5,2357.2,0.42407]
[1726604728899,3.63183,2357.5,2357.2,0.42407]
[1726604730308,0.42404,2357.4,2357.1,7.72429]
[1726604730508,3.63184,2357.5,2357.1,4.02459]
[1726604731204,3.63184,2357.5,2357.2,0.42408]
[1726604731999,3.63184,2357.5,2357.1,3.6005]
[1726604732199,3.2078,2357.5,2357.2,0.42407]
[1726604732400,3.63182,2357.5,2357.2,0.42407]
[1726604732604,0.42405,2357.4,2357.1,0.3927]
[1726604732902,3.63184,2357.5,2357.1,0.81679]
[1726604733608,3.63183,2357.5,2357.2,0.42408]
[1726604736106,3.63183,2357.5,2357.3,0.42406]
[1726604736303,3.63183,2357.5,2357.1,3.6005]
[1726604736508,3.63183,2357.5,2357.3,0.42406]
[1726604736910,3.2078,2357.5,2357.2,0.42407]
[1726604737110,3.63184,2357.5,2357.2,0.42407]
[1726604738307,0.42404,2357.5,2357.2,0.42407]
[1726604738511,0.42405,2357.4,2357.1,4.02459]
[1726604738710,0.42405,2357.4,2357.2,0.42408]
[1726604739106,0.42404,2357.5,2357.2,0.42408]
[1726604739297,0.42404,2357.4,2357.2,0.42408]
[1726604739805,0.42405,2357.4,2357.1,4.02459]
[1726604740305,0.42405,2357.4,2357.2,0.42408]
[1726604741008,0.42404,2357.5,2357.2,0.42408]
[1726604741210,0.42404,2357.4,2357.2,0.42408]
[1726604742109,0.808,2357.6,2357.1,6.9105]
[1726604742310,3.63178,2357.8,2357.5,0.42402]
[1726604742605,3.63178,2357.8,2357.6,0.42401]
[1726604742913,3.63178,2357.8,2357.6,0.424]
[1726604743107,0.42398,2357.8,2357.6,0.424]
[1726604743610,0.42399,2357.7,2357.6,0.4012]
[1726604743806,1.2094,2358.0,2357.6,0.4012]
[1726604744000,0.42399,2357.7,2357.6,0.4012]
[1726604744203,2.26927,2358.0,2357.6,0.82521]
[1726604744204,0.42398,2357.8,2357.6,0.82521]
[1726604744613,0.42399,2357.7,2357.6,0.4012]
[1726604745004,5.47707,2358.0,2357.6,0.4012]
[1726604745221,0.42399,2357.7,2357.6,0.4012]
[1726604745709,0.42398,2357.8,2357.6,0.8252]
[1726604745900,0.42395,2357.9,2357.6,0.4012]
[1726604746102,0.42399,2357.7,2357.6,0.8252]
[1726604746906,0.42398,2357.8,2357.6,0.4012]
[1726604747118,0.32880291,2358.4,2357.7,6.5178]
[1726604747119,3.2078,2358.4,2357.7,6.5178]
[1726604747309,0.3866,2358.3,2358.2,0.42389]
[1726604747508,0.3866,2358.3,2358.1,0.8184]
[1726604747718,0.3866,2358.3,2358.2,0.4239]
[1726604748815,0.3866,2358.3,2358.1,4.1284]
[1726604750910,0.3866,2358.3,2358.1,3.7045]
[1726604750911,0.81048,2358.3,2358.1,3.7045]
[1726604751420,0.81048,2358.3,2358.1,0.3945]
[1726604751610,0.3866,2358.3,2358.1,0.3945]
[1726604751912,0.81048,2358.3,2358.1,0.3945]
[1726604756223,0.42392,2358.1,2358.0,3.2078]
[1726604757320,0.3866,2358.3,2358.0,3.2078]
[1726604757628,0.4239,2358.2,2358.0,3.2078]
[1726604758211,0.4239,2358.2,2358.0,3.63173]
[1726604758727,0.4239,2358.2,2358.0,3.2078]
[1726604758935,0.3866,2358.3,2358.1,3.31]
[1726604759224,0.3866,2358.3,2358.2,0.3952]
[1726604759430,0.81048,2358.3,2358.2,0.3952]
[1726604759820,0.81048,2358.3,2358.0,6.94173]
[1726604759821,0.42391,2358.2,2358.0,6.94173]
[1726604760022,0.42392,2358.1,2358.0,3.2078]
[1726604760222,4.2408,2358.1,2357.7,0.418]
[1726604760422,1.23574,2358.0,2357.7,0.42399]
[1726604760924,1.23574,2358.0,2357.5,4.53452]
[1726604760925,0.4069,2357.9,2357.5,4.53452]
[1726604761334,0.4069,2357.9,2357.6,0.424]
[1726604761531,0.4069,2357.9,2357.5,4.53451]
[1726604761532,0.83085,2357.9,2357.5,4.53451]
[1726604761734,0.83085,2357.9,2357.6,0.424]
[1726604762221,0.4069,2357.9,2357.7,6.5178]
[1726604762421,0.4069,2357.9,2357.7,6.94178]
[1726604762621,0.407,2358.0,2357.8,0.42397]
[1726604762824,0.407,2358.0,2357.9,3.31]
[1726604763034,0.4069,2358.2,2357.9,3.73395]
[1726604763227,0.4069,2358.2,2358.1,3.73392]
[1726604763423,0.82499,2358.3,2358.1,3.31]
[1726604763630,1.24039,2358.3,2358.1,3.31]
[1726604763930,0.8165,2358.3,2358.1,3.31]
[1726604764231,1.24039,2358.3,2358.1,3.6937]
[1726604764630,1.24039,2358.3,2358.1,0.3837]
[1726604764935,0.4239,2358.2,2358.0,3.2078]
[1726604766326,0.8165,2358.3,2358.0,3.2078]
[1726604766630,0.4239,2358.2,2358.0,3.2078]
[1726604766829,0.42395,2357.9,2357.7,0.3988]
[1726604767033,1.24458,2357.8,2357.6,3.2078]
[1726604767331,0.42399,2357.7,2357.6,3.2078]
[1726604770530,0.8206,2357.8,2357.6,6.5178]
[1726604770733,0.42394,2358.0,2357.7,0.4052]
[1726604771034,1.63153,2358.1,2357.8,3.31]
[1726604771232,1.63153,2358.1,2357.8,3.73397]
[1726604771531,1.23162,2358.1,2357.8,3.73396]
[1726604771835,0.8077,2358.1,2357.8,3.31]
[1726604772036,0.8077,2358.1,2357.9,0.42394]
[1726604773342,0.8077,2358.1,2357.8,3.73396]
[1726604773343,1.23162,2358.1,2357.8,3.73396]
[1726604773643,0.8077,2358.1,2357.7,1.62037]
[1726604773828,0.8077,2358.1,2357.6,6.5178]
[1726604773829,0.8077,2358.1,2357.6,3.6318]
[1726604774133,0.42396,2357.9,2357.6,3.6318]
[1726604774336,0.42397,2357.8,2357.6,3.2078]
[1726604774533,0.42396,2357.9,2357.6,3.6318]
[1726604774837,0.8077,2358.1,2357.7,0.42398]
[1726604775035,0.42394,2358.0,2357.7,0.82798]
[1726604775232,0.42395,2357.9,2357.7,0.82798]
[1726604775427,0.42395,2357.9,2357.7,0.404]
[1726604775835,0.8077,2358.1,2357.8,0.42396]
[1726604775836,0.42394,2358.0,2357.8,0.42396]
[1726604776138,0.42394,2358.0,2357.7,0.404]
[1726604776338,0.42394,2358.0,2357.8,0.42397]
[1726604777628,0.42394,2358.0,2357.9,0.3872]
[1726604780139,0.8077,2358.1,2357.9,0.3872]
[1726604780336,0.42387,2358.4,2358.2,0.42389]
[1726604780638,0.42385,2358.5,2358.3,0.42388]
[1726604781227,4.26736,2358.7,2358.2,6.5178]
[1726604781439,0.42387,2358.4,2358.2,6.94169]
[1726604781633,0.42383,2358.6,2358.2,3.2078]
[1726604781634,0.42388,2358.3,2358.2,3.2078]
[1726604781939,0.81018,2358.3,2358.2,3.2078]
[1726604782143,0.3863,2358.3,2358.2,3.6317]
[1726604782547,0.3863,2358.3,2358.2,3.2078]
[1726604783040,0.3863,2358.3,2358.2,3.6317]
[1726604784435,0.3863,2358.3,2358.2,0.4239]
[1726604784635,0.42387,2358.4,2358.2,0.4239]
[1726604785640,0.42387,2358.4,2358.2,3.7339]
[1726604786042,0.81813,2358.6,2358.2,3.31]
[1726604786440,0.42387,2358.4,2358.2,3.73388]
[1726604787744,0.81813,2358.6,2358.2,3.73388]
[1726604787945,0.42388,2358.3,2358.2,0.42388]
[1726604788145,0.42387,2358.4,2358.2,0.42388]
[1726604789146,0.42386,2358.5,2358.1,3.5991]
[1726604789346,0.42386,2358.4,2358.3,0.42387]
[1726604790244,0.42386,2358.4,2358.2,0.42389]
[1726604791341,0.42386,2358.4,2358.3,0.42388]
[1726604792147,0.81813,2358.6,2358.2,0.42388]
[1726604792344,0.81813,2358.6,2358.1,3.5991]
[1726604792345,0.3943,2358.6,2358.3,0.42388]
[1726604792544,0.3943,2358.6,2358.2,0.42389]
[1726604792545,0.42388,2358.4,2358.2,0.42389]
[1726604794248,0.42388,2358.4,2358.3,0.42388]
[1726604794447,0.42386,2358.5,2358.3,0.42388]
[1726604795350,0.42386,2358.4,2358.3,0.42388]
[1726604795855,0.7906,2358.8,2358.3,0.42388]
[1726604795856,0.3871,2358.8,2358.3,4.24]
[1726604796058,0.83276,2359.0,2358.7,6.5178]
[1726604796347,0.83276,2359.0,2358.8,0.42377]
[1726604797159,0.83276,2359.0,2358.8,0.42379]
[1726604797160,0.409,2359.0,2358.8,0.42379]
[1726604797759,0.42378,2358.9,2358.7,6.9416]
[1726604798668,0.42378,2358.9,2358.7,3.6316]
[1726604799259,0.409,2359.0,2358.7,3.6316]
[1726604799260,0.409,2359.0,2358.7,6.5178]
[1726604799456,0.409,2359.0,2358.9,0.42377]
[1726604799656,0.82421,2359.3,2358.9,3.31]
[1726604799862,1.24031,2359.3,2359.0,3.63155]
[1726604800161,1.24032,2359.3,2359.1,3.31]
[1726604800970,0.8166,2359.3,2359.1,3.31]
[1726604801164,4.155,2359.9,2359.2,0.4131]
[1726604801367,0.3824,2359.4,2359.2,0.4131]
[1726604801561,0.80609,2359.4,2359.2,0.4131]
[1726604801864,0.80609,2359.4,2359.1,4.15333]
[1726604802562,0.42373,2359.2,2359.0,3.2078]
[1726604802763,0.4248,2359.1,2359.0,3.63155]
[1726604805562,0.389,2359.3,2359.0,3.63155]
[1726604805563,0.81271,2359.3,2359.0,3.63155]
[1726604805876,0.81271,2359.3,2359.0,3.63154]
[1726604805877,0.42372,2359.2,2359.0,3.63154]
[1726604808863,0.42374,2359.1,2359.0,3.63154]
[1726604809368,0.42373,2359.2,2359.0,3.2078]
[1726604809564,4.6282,2359.3,2359.0,3.63156]
[1726604809768,1.05935,2359.1,2358.7,0.4238]
[1726604809969,0.42377,2358.9,2358.7,0.42381]
[1726604810469,0.42379,2358.8,2358.7,0.42381]
[1726604810663,0.8319,2359.0,2358.6,3.6308]
[1726604810867,0.4108,2359.0,2358.9,3.31]
[1726604811063,0.4108,2359.0,2358.9,3.73377]
[1726604811574,0.83456,2359.0,2358.8,0.42378]
[1726604811959,1.47021,2359.0,2358.6,4.05462]
[1726604812158,0.4238,2358.8,2358.6,3.6308]
[1726604812559,0.4238,2358.8,2358.7,0.42381]
[1726604812766,0.4238,2358.8,2358.6,4.05462]
[1726604812972,0.3954,2358.9,2358.6,4.05462]
[1726604813272,0.4217,2358.8,2358.7,0.42381]
[1726604813672,0.4217,2358.8,2358.6,3.6308]
[1726604813866,0.84549,2358.8,2358.7,0.42381]
[1726604814172,0.84549,2358.8,2358.6,4.05462]
[1726604814473,0.84549,2358.8,2358.7,0.42381]
[1726604814474,0.4217,2358.8,2358.7,0.42381]
[1726604815064,0.4108,2359.0,2358.7,7.5492]
[1726604815277,0.4108,2359.0,2358.9,3.31]
[1726604815470,0.4108,2359.0,2358.8,0.42378]
[1726604815670,0.4108,2359.0,2358.9,0.42377]
[1726604815977,0.4108,2359.0,2358.7,3.31]
[1726604815978,0.83456,2359.0,2358.8,0.81868]